fUST/lending_fUST_20240624
["ID","MTS","AMOUNT","RATE_DAILY","PERIOD"]
[330251470,1719209944429,-990.65106447,0.00018989,2]
[330251471,1719209944471,-1001.34954174,0.0001899,3]
[330251472,1719209944510,-525.29379384,0.00019,2]
[330251473,1719209944549,-154.91491942,0.00019,2]
[330251474,1719209944589,-154.85288975,0.00019,2]
[330251475,1719209944628,-1356.179005,0.00019,2]
[330251476,1719209944812,1746.50392491,0.00018903,2]
[330251477,1719209944876,516.79936011,0.0001819,2]
[330251478,1719209944998,500.0,0.00016438,2]
[330251479,1719209945058,2115.26284951,0.00018999,2]
[330251480,1719209945122,825.92070736,0.00018078,2]
[330251481,1719209945380,504.65755984,0.00016438,2]
[330251482,1719209948480,500.0,0.00016438,2]
[330251483,1719209948759,500.0,0.00016712,2]
[330251484,1719209949377,500.0,0.00016986,2]
[330251485,1719210206654,3000.0,0.000225,30]
[330251487,1719210433820,-1550.04049263,0.00016338,2]
[330251488,1719210433840,-687.78,0.00016438,2]
[330251489,1719210433860,-507.94303701,0.00016438,2]
[330251490,1719210433880,-500.0,0.00016438,2]
[330251491,1719210433901,-500.0,0.00016438,2]
[330251492,1719210433923,-507.16185287,0.00016438,2]
[330251493,1719210433944,-500.0,0.00016438,2]
[330251494,1719210433965,-500.0,0.00016438,2]
[330251495,1719210433985,-500.0,0.00016438,2]
[330251496,1719210434005,-500.0,0.00016438,2]
[330251497,1719210434024,-500.0,0.00016438,2]
[330251498,1719210434044,-500.0,0.00016438,2]
[330251499,1719210434065,-779.35,0.00016438,2]
[330251500,1719210434085,-500.0,0.00016438,2]
[330251501,1719210434105,-500.0,0.00016438,2]
[330251502,1719210434126,-1238.5,0.00016438,2]
[330251503,1719210434147,-500.0,0.00016438,2]
[330251504,1719210434169,-255.76240749,0.00016438,2]
[330251505,1719210434812,-244.23759251,0.00016438,2]
[330251506,1719210434831,-500.0,0.00016438,2]
[330251507,1719210434852,-1716.13,0.00016438,2]
[330251508,1719210434872,-652.42,0.00016438,2]
[330251509,1719210434892,-500.0,0.00016438,2]
[330251510,1719210434912,-500.0,0.00016438,2]
[330251511,1719210434933,-500.0,0.00016438,2]
[330251512,1719210434952,-1466.65,0.00016438,2]
[330251513,1719210434971,-500.0,0.00016438,2]
[330251514,1719210434991,-500.0,0.00016438,2]
[330251515,1719210435010,-500.0,0.00016438,2]
[330251516,1719210435029,-500.0,0.00016438,2]
[330251517,1719210435050,-1519.81,0.00016438,2]
[330251518,1719210435068,-525.95,0.00016438,2]
[330251519,1719210435087,-500.0,0.00016438,2]
[330251520,1719210435106,-946.22,0.00016438,2]
[330251521,1719210435125,-4734.17,0.00016438,2]
[330251522,1719210435299,-500.0,0.00016438,2]
[330251523,1719210435319,-811.96,0.00016438,2]
[330251524,1719210435340,-500.0,0.00016438,2]
[330251525,1719210435359,-500.0,0.00016438,2]
[330251526,1719210435379,-500.0,0.00016438,2]
[330251527,1719210435401,-500.0,0.00016438,2]
[330251528,1719210435423,-1077.34,0.00016438,2]
[330251529,1719210435442,-1232.34,0.00016438,2]
[330251530,1719210435462,-500.0,0.00016438,2]
[330251531,1719210435482,-500.0,0.00016438,2]
[330251532,1719210435502,-3284.6,0.00016438,2]
[330251533,1719210435522,-500.0,0.00016438,2]
[330251534,1719210435541,-500.0,0.00016438,2]
[330251535,1719210435561,-500.0,0.00016438,2]
[330251536,1719210435580,-500.0,0.00016438,2]
[330251537,1719210435600,-5701.74,0.00016438,2]
[330251538,1719210435620,-401.93126027,0.00016438,2]
[330251539,1719210435640,-524.86,0.00016438,2]
[330251540,1719210435661,-500.0,0.00016438,2]
[330251541,1719210435681,-7946.51,0.00016438,2]
[330251542,1719210435703,-500.0,0.00016438,2]
[330251543,1719210435723,-437.83110556,0.00016438,2]
[330251544,1719210435743,-500.0,0.00016438,2]
[330251545,1719210435763,-500.0,0.00016438,2]
[330251546,1719210435782,-500.0,0.00016438,2]
[330251547,1719210435803,-687.78,0.00016712,2]
[330251548,1719210435824,-500.0,0.00016712,2]
[330251549,1719210435844,-500.0,0.00016712,2]
[330251550,1719210435864,-500.0,0.00016712,2]
[330251551,1719210435884,-500.0,0.00016712,2]
[330251552,1719210435903,-500.0,0.00016712,2]
[330251553,1719210435926,-500.0,0.00016712,2]
[330251554,1719210435947,-500.0,0.00016712,2]
[330251555,1719210435966,-779.35,0.00016712,2]
[330251556,1719210435987,-500.0,0.00016712,2]
[330251557,1719210436009,-500.0,0.00016712,2]
[330251558,1719210436029,-1238.5,0.00016712,2]
[330251559,1719210436050,-500.0,0.00016712,2]
[330251560,1719210436069,-500.0,0.00016712,2]
[330251561,1719210436088,-500.0,0.00016712,2]
[330251562,1719210436107,-1716.13,0.00016712,2]
[330251563,1719210436127,-652.42,0.00016712,2]
[330251564,1719210436147,-500.0,0.00016712,2]
[330251565,1719210436172,-500.0,0.00016712,2]
[330251566,1719210436194,-500.0,0.00016712,2]
[330251567,1719210436216,-1466.65,0.00016712,2]
[330251568,1719210436235,-500.0,0.00016712,2]
[330251569,1719210436255,-500.0,0.00016712,2]
[330251570,1719210436275,-500.0,0.00016712,2]
[330251571,1719210436295,-297.50671362,0.00016712,2]
[330251572,1719210436320,-1519.81,0.00016712,2]
[330251573,1719210436343,-525.95,0.00016712,2]
[330251574,1719210436364,-500.0,0.00016712,2]
[330251575,1719210436386,-946.22,0.00016712,2]
[330251576,1719210436408,-4734.17,0.00016712,2]
[330251577,1719210436429,-500.0,0.00016712,2]
[330251578,1719210436449,-811.96,0.00016712,2]
[330251579,1719210436469,-500.0,0.00016712,2]
[330251580,1719210436490,-500.0,0.00016712,2]
[330251581,1719210436512,-500.0,0.00016712,2]
[330251582,1719210436531,-500.0,0.00016712,2]
[330251583,1719210436553,-1077.34,0.00016712,2]
[330251584,1719210436574,-1232.34,0.00016712,2]
[330251585,1719210436595,-500.0,0.00016712,2]
[330251586,1719210436616,-500.0,0.00016712,2]
[330251587,1719210436636,-3284.6,0.00016712,2]
[330251588,1719210436659,-500.0,0.00016712,2]
[330251589,1719210436680,-500.0,0.00016712,2]
[330251590,1719210436699,-500.0,0.00016712,2]
[330251591,1719210436720,-500.0,0.00016712,2]
[330251592,1719210436740,-5701.74,0.00016712,2]
[330251593,1719210436761,-524.86,0.00016712,2]
[330251594,1719210436780,-66.70280267,0.00016712,2]
[330251911,1719210638438,-500.0,0.00016438,2]
[330251913,1719210638450,-500.0,0.00016438,2]
[330251914,1719210638460,-500.0,0.00016438,2]
[330251916,1719210638469,-1344.43,0.00016438,2]
[330251917,1719210638477,-500.0,0.00016438,2]
[330251918,1719210638486,-533.61660047,0.00016438,2]
[330251919,1719210638496,-500.0,0.00016438,2]
[330251920,1719210638505,-500.0,0.00016438,2]
[330251921,1719210638515,-500.0,0.00016438,2]
[330251922,1719210638524,-500.0,0.00016438,2]
[330251923,1719210638533,-1135.29,0.00016438,2]
[330251924,1719210638543,-500.0,0.00016438,2]
[330251925,1719210638553,-757.89,0.00016438,2]
[330251926,1719210638563,-500.0,0.00016438,2]
[330251927,1719210638575,-500.0,0.00016438,2]
[330251928,1719210638585,-636.58139146,0.00016438,2]
[330251929,1719210638595,-744.3,0.00016438,2]
[330251930,1719210638604,-500.0,0.00016438,2]
[330251931,1719210638614,-500.0,0.00016438,2]
[330251932,1719210638623,-500.0,0.00016438,2]
[330251933,1719210638633,-500.0,0.00016438,2]
[330251934,1719210638643,-500.0,0.00016438,2]
[330251935,1719210638652,-1129.65,0.00016438,2]
[330251936,1719210638662,-286.6,0.00016438,2]
[330251937,1719210638671,-867.37,0.00016438,2]
[330251938,1719210638681,-500.0,0.00016438,2]
[330251939,1719210638691,-4339.66,0.00016438,2]
[330251940,1719210638700,-2053.80917011,0.00016438,2]
[330251941,1719210638876,-957.07082989,0.00016438,2]
[330251942,1719210638886,-500.0,0.00016438,2]
[330251943,1719210638897,-630.47,0.00016438,2]
[330251944,1719210638907,-500.0,0.00016438,2]
[330251945,1719210638916,-500.0,0.00016438,2]
[330251946,1719210638926,-500.0,0.00016438,2]
[330251947,1719210638935,-500.0,0.00016438,2]
[330251948,1719210638945,-500.0,0.00016438,2]
[330251949,1719210638955,-500.0,0.00016438,2]
[330251950,1719210638964,-1573.12,0.00016438,2]
[330251951,1719210638973,-500.0,0.00016438,2]
[330251952,1719210638982,-1356.28543106,0.00016612,2]
[330251953,1719210638993,-433.29719733,0.00016712,2]
[330251954,1719210639002,-7946.51,0.00016712,2]
[330251955,1719210639012,-519.2266744,0.00016712,2]
[330251956,1719210639023,-500.0,0.00016712,2]
[330251957,1719210639033,-500.0,0.00016712,2]
[330251958,1719210639043,-500.0,0.00016712,2]
[330251959,1719210639053,-500.0,0.00016712,2]
[330251960,1719210639065,-1344.43,0.00016712,2]
[330251961,1719210639076,-500.0,0.00016712,2]
[330251962,1719210639087,-500.0,0.00016712,2]
[330251963,1719210639097,-500.0,0.00016712,2]
[330251964,1719210639107,-500.0,0.00016712,2]
[330251965,1719210639118,-500.0,0.00016712,2]
[330251966,1719210639128,-282.74747199,0.00016712,2]
[330251967,1719210639139,-1135.29,0.00016712,2]
[330251968,1719210639150,-757.89,0.00016712,2]
[330251969,1719210639162,-500.0,0.00016712,2]
[330251970,1719210639172,-500.0,0.00016712,2]
[330251971,1719210639182,-744.3,0.00016712,2]
[330251972,1719210639192,-500.0,0.00016712,2]
[330251973,1719210639202,-500.0,0.00016712,2]
[330251974,1719210639211,-287.09196786,0.00016712,2]
[330251975,1719210639222,-500.0,0.00016712,2]
[330251976,1719210639232,-500.0,0.00016712,2]
[330251977,1719210639242,-500.0,0.00016712,2]
[330251978,1719210639253,-1129.65,0.00016712,2]
[330251979,1719210639264,-867.37,0.00016712,2]
[330251980,1719210639276,-500.0,0.00016712,2]
[330251981,1719210639286,-4339.66,0.00016712,2]
[330251982,1719210639297,-3010.88,0.00016712,2]
[330251983,1719210639307,-500.0,0.00016712,2]
[330251984,1719210639323,-630.47,0.00016712,2]
[330251985,1719210639334,-500.0,0.00016712,2]
[330251986,1719210639344,-500.0,0.00016712,2]
[330251987,1719210639512,-500.0,0.00016712,2]
[330251988,1719210639535,-500.0,0.00016712,2]
[330251989,1719210639546,-500.0,0.00016712,2]
[330251990,1719210639556,-500.0,0.00016712,2]
[330251991,1719210639571,-1515.97276277,0.00016712,2]
[330251992,1719210639585,-57.14723723,0.00016712,2]
[330251993,1719210639595,-500.0,0.00016712,2]
[330251994,1719210639604,-876.0,0.00016968,2]
[330251995,1719210639614,-1393.16,0.00016985,2]
[330251996,1719210639622,-500.0,0.00016985,2]
[330251997,1719210639632,-987.56,0.00016985,2]
[330251998,1719210639641,-500.0,0.00016985,2]
[330251999,1719210639651,-500.0,0.00016986,2]
[330252000,1719210639661,-500.0,0.00016986,2]
[330252001,1719210639671,-500.0,0.00016986,2]
[330252002,1719210639681,-779.35,0.00016986,2]
[330252003,1719210639692,-500.0,0.00016986,2]
[330252004,1719210639706,-500.0,0.00016986,2]
[330252005,1719210639716,-500.0,0.00016986,2]
[330252006,1719210639727,-500.0,0.00016986,2]
[330252007,1719210639737,-188.17761277,0.00016986,2]
[330252008,1719210639750,-311.82238723,0.00016986,2]
[330252009,1719210639760,-565.8140357,0.00016986,2]
[330252010,1719210639770,-193.49536464,0.00016986,2]
[330252011,1719210639780,-500.0,0.00016986,2]
[330252012,1719210639790,-500.0,0.00016986,2]
[330252013,1719210639800,-5439.4700049,0.00016986,2]
[330252296,1719210643229,-262.2699951,0.00016986,2]
[330252301,1719210643239,-379.53489639,0.00016986,2]
[330252305,1719210643251,-120.46510361,0.00016986,2]
[330252307,1719210643260,-7946.51,0.00016986,2]
[330252309,1719210643269,-500.0,0.00016986,2]
[330252311,1719210643278,-485.21462758,0.00016986,2]
[330252313,1719210643287,-500.0,0.00016986,2]
[330252315,1719210643296,-412.00163563,0.00016986,2]
[330252317,1719210643305,-1344.43,0.00016986,2]
[330252318,1719210643315,-500.0,0.00016986,2]
[330252319,1719210643327,-500.0,0.00016986,2]
[330252320,1719210643336,-500.0,0.00016986,2]
[330252321,1719210643345,-500.0,0.00016986,2]
[330252322,1719210643354,-500.0,0.00016986,2]
[330252323,1719210643365,-1135.29,0.00016986,2]
[330252324,1719210643376,-757.89,0.00016986,2]
[330252325,1719210643385,-500.0,0.00016986,2]
[330252326,1719210643395,-744.3,0.00016986,2]
[330252327,1719210643405,-500.0,0.00016986,2]
[330252328,1719210643414,-500.0,0.00016986,2]
[330252329,1719210643423,-500.0,0.00016986,2]
[330252330,1719210643433,-500.0,0.00016986,2]
[330252331,1719210643445,-500.0,0.00016986,2]
[330252333,1719210643454,-1129.65,0.00016986,2]
[330252334,1719210643464,-867.37,0.00016986,2]
[330252336,1719210643473,-500.0,0.00016986,2]
[330252338,1719210643483,-4339.66,0.00016986,2]
[330252341,1719210643493,-3010.88,0.00016986,2]
[330252343,1719210643502,-500.0,0.00016986,2]
[330252344,1719210643512,-630.47,0.00016986,2]
[330252347,1719210643521,-500.0,0.00016986,2]
[330252349,1719210643531,-500.0,0.00016986,2]
[330252350,1719210643540,-500.0,0.00016986,2]
[330252353,1719210643550,-500.0,0.00016986,2]
[330252355,1719210643559,-500.0,0.00016986,2]
[330252357,1719210643570,-500.0,0.00016986,2]
[330252359,1719210643583,-1573.12,0.00016986,2]
[330252361,1719210643593,-500.0,0.00016986,2]
[330252363,1719210643602,-1393.16,0.00017259,2]
[330252365,1719210643611,-500.0,0.00017259,2]
[330252366,1719210643621,-987.56,0.00017259,2]
[330252368,1719210643630,-500.0,0.00017259,2]
[330252370,1719210643640,-500.0,0.0001726,2]
[330252372,1719210643649,-500.0,0.0001726,2]
[330252374,1719210643658,-500.0,0.0001726,2]
[330252376,1719210643667,-779.35,0.0001726,2]
[330252378,1719210643678,-500.0,0.0001726,2]
[330252380,1719210643688,-500.0,0.0001726,2]
[330252382,1719210643697,-500.0,0.0001726,2]
[330252385,1719210643708,-500.0,0.0001726,2]
[330252386,1719210643717,-500.0,0.0001726,2]
[330252388,1719210643726,-500.0,0.0001726,2]
[330252390,1719210643736,-500.0,0.0001726,2]
[330252392,1719210643745,-5701.74,0.0001726,2]
[330252394,1719210643755,-500.0,0.0001726,2]
[330252397,1719210643764,-7946.51,0.0001726,2]
[330252398,1719210643774,-500.0,0.0001726,2]
[330252400,1719210643783,-500.0,0.0001726,2]
[330252402,1719210643792,-1344.43,0.0001726,2]
[330252404,1719210643802,-500.0,0.0001726,2]
[330252407,1719210643811,-500.0,0.0001726,2]
[330252409,1719210643825,-500.0,0.0001726,2]
[330252410,1719210643834,-500.0,0.0001726,2]
[330252412,1719210643843,-500.0,0.0001726,2]
[330252414,1719210643851,-1135.29,0.0001726,2]
[330252416,1719210643861,-757.89,0.0001726,2]
[330252418,1719210643870,-500.0,0.0001726,2]
[330252420,1719210643879,-744.3,0.0001726,2]
[330252422,1719210643887,-500.0,0.0001726,2]
[330252424,1719210643896,-500.0,0.0001726,2]
[330252426,1719210643906,-500.0,0.0001726,2]
[330252428,1719210643915,-500.0,0.0001726,2]
[330252430,1719210643924,-500.0,0.0001726,2]
[330252432,1719210643933,-1129.65,0.0001726,2]
[330252434,1719210643942,-867.37,0.0001726,2]
[330252436,1719210643952,-500.0,0.0001726,2]
[330252438,1719210643961,-4339.66,0.0001726,2]
[330252440,1719210643970,-3010.88,0.0001726,2]
[330252442,1719210643979,-500.0,0.0001726,2]
[330252444,1719210643988,-630.47,0.0001726,2]
[330252446,1719210643998,-500.0,0.0001726,2]
[330252448,1719210644007,-553.19083405,0.0001726,2]
[330252450,1719210644016,-476.84361851,0.0001726,2]
[330252452,1719210644025,-500.0,0.0001726,2]
[330252454,1719210644035,-500.0,0.0001726,2]
[330252456,1719210644046,-500.0,0.0001726,2]
[330252458,1719210644055,-1573.12,0.0001726,2]
[330252460,1719210644065,-500.0,0.0001726,2]
[330252462,1719210644079,-1393.16,0.00017533,2]
[330252464,1719210644089,-500.0,0.00017533,2]
[330252466,1719210644099,-987.56,0.00017533,2]
[330252468,1719210644109,-500.0,0.00017533,2]
[330252470,1719210644119,-500.0,0.00017534,2]
[330252472,1719210644129,-500.0,0.00017534,2]
[330252474,1719210644139,-500.0,0.00017534,2]
[330252476,1719210644148,-779.35,0.00017534,2]
[330252478,1719210644158,-500.0,0.00017534,2]
[330252480,1719210644167,-500.0,0.00017534,2]
[330252482,1719210644176,-500.0,0.00017534,2]
[330252484,1719210644185,-500.0,0.00017534,2]
[330252486,1719210644195,-500.0,0.00017534,2]
[330252488,1719210644204,-500.0,0.00017534,2]
[330252490,1719210644213,-500.0,0.00017534,2]
[330252492,1719210644223,-5701.74,0.00017534,2]
[330252494,1719210644234,-500.0,0.00017534,2]
[330252496,1719210644243,-7946.51,0.00017534,2]
[330252498,1719210644252,-500.0,0.00017534,2]
[330252500,1719210644261,-500.0,0.00017534,2]
[330252502,1719210644271,-1344.43,0.00017534,2]
[330252504,1719210644280,-500.0,0.00017534,2]
[330252506,1719210644289,-500.0,0.00017534,2]
[330252508,1719210644298,-500.0,0.00017534,2]
[330252510,1719210644307,-500.0,0.00017534,2]
[330252512,1719210644317,-500.0,0.00017534,2]
[330252515,1719210644329,-1135.29,0.00017534,2]
[330252518,1719210644338,-757.89,0.00017534,2]
[330252521,1719210644347,-500.0,0.00017534,2]
[330252525,1719210644356,-744.3,0.00017534,2]
[330252528,1719210644366,-359.77269732,0.00017534,2]
[330252530,1719210644379,-500.0,0.00017534,2]
[330252533,1719210644388,-221.34661482,0.00017534,2]
[330252534,1719210644398,-500.0,0.00017534,2]
[330252536,1719210644409,-500.0,0.00017534,2]
[330252538,1719210644419,-1129.65,0.00017534,2]
[330252540,1719210644428,-867.37,0.00017534,2]
[330252543,1719210644437,-500.0,0.00017534,2]
[330252544,1719210644446,-4339.66,0.00017534,2]
[330252546,1719210644457,-3010.88,0.00017534,2]
[330252548,1719210644467,-630.47,0.00017534,2]
[330252550,1719210644477,-500.0,0.00017534,2]
[330252552,1719210644486,-500.0,0.00017534,2]
[330252554,1719210644495,-500.0,0.00017534,2]
[330252556,1719210644504,-500.0,0.00017534,2]
[330252558,1719210644514,-1573.12,0.00017534,2]
[330252560,1719210644523,-500.0,0.00017534,2]
[330252562,1719210644533,-1393.16,0.00017807,2]
[330252564,1719210644542,-500.0,0.00017807,2]
[330252566,1719210644551,-987.56,0.00017807,2]
[330252568,1719210644561,-500.0,0.00017807,2]
[330252570,1719210644571,-500.0,0.00017808,2]
[330252572,1719210644581,-213.80786307,0.00017808,2]
[330252574,1719210644590,-500.0,0.00017808,2]
[330252576,1719210644599,-779.35,0.00017808,2]
[330252578,1719210644608,-500.0,0.00017808,2]
[330252580,1719210644618,-500.0,0.00017808,2]
[330252582,1719210644627,-500.0,0.00017808,2]
[330252584,1719210644636,-500.0,0.00017808,2]
[330252586,1719210644645,-500.0,0.00017808,2]
[330252588,1719210644654,-500.0,0.00017808,2]
[330252590,1719210644663,-500.0,0.00017808,2]
[330252592,1719210644672,-5701.74,0.00017808,2]
[330252594,1719210644682,-464.55947717,0.00017808,2]
[330252596,1719210644691,-7946.51,0.00017808,2]
[330252598,1719210644701,-500.0,0.00017808,2]
[330252600,1719210644710,-500.0,0.00017808,2]
[330252602,1719210644719,-1344.43,0.00017808,2]
[330252604,1719210644728,-500.0,0.00017808,2]
[330252606,1719210644738,-500.0,0.00017808,2]
[330252608,1719210644746,-500.0,0.00017808,2]
[330252610,1719210644756,-500.0,0.00017808,2]
[330252612,1719210644765,-500.0,0.00017808,2]
[330252614,1719210644775,-1135.29,0.00017808,2]
[330252616,1719210644783,-757.89,0.00017808,2]
[330252618,1719210644792,-500.0,0.00017808,2]
[330252620,1719210644801,-744.3,0.00017808,2]
[330252622,1719210644810,-407.46862631,0.00017808,2]
[330252624,1719210644821,-57.84366731,0.00017808,2]
[330252634,1719210644911,-500.0,0.00016438,2]
[330252637,1719210644921,-500.0,0.00016712,2]
[330252638,1719210644930,-442.15633269,0.00017808,2]
[330252640,1719210644939,-500.0,0.00017808,2]
[330252642,1719210644948,-1129.65,0.00017808,2]
[330252644,1719210644957,-867.37,0.00017808,2]
[330252646,1719210644966,-500.0,0.00017808,2]
[330252648,1719210644975,-4339.66,0.00017808,2]
[330252650,1719210644985,-3010.88,0.00017808,2]
[330252652,1719210644993,-630.47,0.00017808,2]
[330252654,1719210645003,-500.0,0.00017808,2]
[330252656,1719210645013,-500.0,0.00017808,2]
[330252658,1719210645022,-500.0,0.00017808,2]
[330252660,1719210645031,-500.0,0.00017808,2]
[330252662,1719210645040,-1573.12,0.00017808,2]
[330252664,1719210645049,-500.0,0.00017808,2]
[330252666,1719210645058,-157.894736,0.00017808,2]
[330252668,1719210645071,-177.01264342,0.00017899,2]
[330252670,1719210645080,-1393.16,0.00018081,2]
[330252672,1719210645089,-500.0,0.00018081,2]
[330252674,1719210645098,-987.56,0.00018081,2]
[330252676,1719210645107,-500.0,0.00018081,2]
[330252678,1719210645116,-351.1083111,0.00018082,2]
[330252681,1719210645131,-148.8916889,0.00018082,2]
[330252683,1719210645139,-500.0,0.00018082,2]
[330252685,1719210645148,-779.35,0.00018082,2]
[330252687,1719210645158,-500.0,0.00018082,2]
[330252689,1719210645166,-500.0,0.00018082,2]
[330252691,1719210645175,-500.0,0.00018082,2]
[330252692,1719210645184,-500.0,0.00018082,2]
[330252694,1719210645194,-500.0,0.00018082,2]
[330252697,1719210645204,-500.0,0.00018082,2]
[330252699,1719210645213,-500.0,0.00018082,2]
[330252701,1719210645223,-5701.74,0.00018082,2]
[330252702,1719210645232,-1053.80567025,0.00018082,2]
[330252705,1719210645244,-6892.70432975,0.00018082,2]
[330252707,1719210645254,-500.0,0.00018082,2]
[330252709,1719210645263,-500.0,0.00018082,2]
[330252711,1719210645273,-235.47935326,0.00018082,2]
[330252713,1719210645284,-366.70810306,0.00018082,2]
[330253329,1719210652663,-742.24254368,0.00018082,2]
[330253331,1719210652672,-500.0,0.00018082,2]
[330253332,1719210652682,-500.0,0.00018082,2]
[330253333,1719210652692,-500.0,0.00018082,2]
[330253334,1719210652701,-500.0,0.00018082,2]
[330253335,1719210652710,-287.6226823,0.00018082,2]
[330253336,1719210652720,-1135.29,0.00018082,2]
[330253337,1719210652729,-757.89,0.00018082,2]
[330253338,1719210652738,-500.0,0.00018082,2]
[330253339,1719210652748,-744.3,0.00018082,2]
[330253340,1719210652757,-152.98832022,0.00018082,2]
[330253342,1719210652766,-500.0,0.00018082,2]
[330253344,1719210652774,-1129.65,0.00018082,2]
[330253346,1719210652783,-867.37,0.00018082,2]
[330253348,1719210652792,-500.0,0.00018082,2]
[330253350,1719210652801,-4339.66,0.00018082,2]
[330253352,1719210652810,-962.32336168,0.00018082,2]
[330253374,1719210653005,-500.0,0.00016986,2]
[330253376,1719210653015,-2.3796954,0.0001726,2]
[330253466,1719210653893,-497.6203046,0.0001726,2]
[330253468,1719210653902,-500.0,0.00017534,2]
[330253470,1719210653911,-500.0,0.00017808,2]
[330253472,1719210653920,-2048.55663832,0.00018082,2]
[330253474,1719210653929,-630.47,0.00018082,2]
[330253477,1719210653950,-500.0,0.00018082,2]
[330253480,1719210653961,-500.0,0.00018082,2]
[330253482,1719210653971,-500.0,0.00018082,2]
[330253484,1719210653982,-500.0,0.00018082,2]
[330253486,1719210653991,-1573.12,0.00018082,2]
[330253488,1719210654001,-500.0,0.00018082,2]
[330253490,1719210654012,-500.0,0.00018082,2]
[330253492,1719210654022,-1393.16,0.00018355,2]
[330253494,1719210654032,-500.0,0.00018355,2]
[330253496,1719210654042,-987.56,0.00018355,2]
[330253499,1719210654052,-500.0,0.00018355,2]
[330253501,1719210654062,-500.0,0.00018356,2]
[330253503,1719210654071,-500.0,0.00018356,2]
[330253505,1719210654083,-779.35,0.00018356,2]
[330253507,1719210654092,-500.0,0.00018356,2]
[330253509,1719210654103,-500.0,0.00018356,2]
[330253511,1719210654112,-500.0,0.00018356,2]
[330253513,1719210654122,-500.0,0.00018356,2]
[330253515,1719210654131,-500.0,0.00018356,2]
[330253517,1719210654141,-500.0,0.00018356,2]
[330253519,1719210654151,-500.0,0.00018356,2]
[330253521,1719210654160,-5701.74,0.00018356,2]
[330253523,1719210654170,-7946.51,0.00018356,2]
[330253526,1719210654182,-500.0,0.00018356,2]
[330253528,1719210654191,-500.0,0.00018356,2]
[330253530,1719210654201,-1344.43,0.00018356,2]
[330253532,1719210654211,-500.0,0.00018356,2]
[330253534,1719210654220,-500.0,0.00018356,2]
[330253536,1719210654230,-500.0,0.00018356,2]
[330253538,1719210654240,-500.0,0.00018356,2]
[330253540,1719210654250,-1135.29,0.00018356,2]
[330253542,1719210654260,-757.89,0.00018356,2]
[330253544,1719210654271,-500.0,0.00018356,2]
[330253546,1719210654282,-744.3,0.00018356,2]
[330253548,1719210654291,-500.0,0.00018356,2]
[330253550,1719210654301,-1129.65,0.00018356,2]
[330253552,1719210654312,-867.37,0.00018356,2]
[330253554,1719210654322,-500.0,0.00018356,2]
[330253556,1719210654333,-1358.91328471,0.00018356,2]
[330253559,1719210654346,-2980.74671529,0.00018356,2]
[330253561,1719210654357,-3010.88,0.00018356,2]
[330253563,1719210654368,-630.47,0.00018356,2]
[330253565,1719210654379,-500.0,0.00018356,2]
[330253567,1719210654389,-500.0,0.00018356,2]